Cogmind - Beta 12 @@@ ROGUE MODE // 2023.03.06 @ 12:23:33 Player: Runia Result: Self-destructed Performance ------------- Evolutions (1) 500 Regions Visited (5) 1000 Robots Destroyed (71) 355 Value Destroyed (1518) 1518 Prototype IDs (27) 540 Alien Tech Used (0) 0 Bonus (422) 422 TOTAL SCORE: 4335 Bonus ------- High Alert Combat Kills 122 Aligned with FarCom 300 Cogmind --------- Core Integrity 208/400 Matter 260/300 Energy 265/265 System Corruption 1% Temperature Cool (0) Movement Rolling (195) Ox7 Location -9/Exiles Parts ------- > --- POWER (1) -------- Improved Ion Engine > --- PROPULSION (2) --- Light Treads Armored Wheel > --- UTILITY (3) ------ Cooling System Huge Storage Unit Improved Targeting Computer > --- WEAPON (3) ------- (None) > --- INVENTORY (25) --- Improved Ion Engine Light Treads Light Treads Light Treads Light Treads Light Treads Light Treads Improved Treads Wheel Cooling System High-capacity Storage Unit Improved Targeting Computer Medium Armor Plating Medium Armor Plating Medium Armor Plating Hardened Light Armor Plating Hardened Light Armor Plating Advanced Beam Cannon Advanced Beam Cannon Heavy Assault Rifle Light Cannon Rocket Launcher Rocket Launcher Mini Grenade Launcher Mini Grenade Launcher Peak State ------------ > --- POWER ------------ Improved Ion Engine > --- PROPULSION ------- Light Treads Armored Wheel > --- UTILITY ---------- Cooling System Huge Storage Unit Improved Targeting Computer > --- WEAPON ----------- Advanced Beam Cannon Heavy Particle Cannon Autogun > --- INVENTORY -------- Light Treads Light Treads Light Treads Light Treads Light Treads Improved Treads Wheel Cooling System High-capacity Storage Unit Improved Targeting Computer Medium Armor Plating Medium Armor Plating Medium Armor Plating Hardened Light Armor Plating Hardened Light Armor Plating Improved Medium Laser Advanced Beam Cannon Advanced Beam Cannon Light Cannon Rocket Launcher Rocket Launcher Rocket Launcher Mini Grenade Launcher Mini Grenade Launcher [Rating: 22] Favorites ----------- Power Ion Engine Engine Ion Engine Propulsion Light Treads Treads Light Treads Leg Aluminum Leg Wheel Armored Wheel Utility Improved Targeting Computer Device Cooling System Storage Huge Storage Unit Processor Improved Targeting Computer Weapon Light Assault Rifle Energy Gun Medium Laser Energy Cannon Advanced Beam Cannon Ballistic Gun Light Assault Rifle Launcher Mini Grenade Launcher Build | -11 -10 -10 -9 -9 -9 ------- Run | Jun Mat Min Mat Min Exi Slots Evolved 2 | . . . 2 . . Power . | . . . . . . Propulsion . | . . . . . . Utility 1 | . . . 1 . . Weapon 1 | . . . 1 . . Parts Attached 49 | 2 8 . 37 2 . Power 3 | . 1 . 2 . . Engine 3 | . 1 . 2 . . Core . | . . . . . . Reactor . | . . . . . . Propulsion 9 | 2 1 . 6 . . Treads 6 | 2 . . 4 . . Leg . | . . . . . . Wheel 3 | . 1 . 2 . . Hover . | . . . . . . Flight . | . . . . . . Utility 7 | . 4 . 3 . . Device 2 | . . . 2 . . Storage 3 | . 2 . 1 . . Processor 2 | . 2 . . . . Hackware . | . . . . . . Protection . | . . . . . . Artifact . | . . . . . . Weapon 30 | . 2 . 26 2 . Energy Gun 6 | . 1 . 4 1 . Energy Cannon 4 | . . . 4 . . Ballistic Gun 10 | . 1 . 9 . . Ballistic Cannon . | . . . . . . Launcher 10 | . . . 9 1 . Special Weapon . | . . . . . . Impact Weapon . | . . . . . . Slashing Weapon . | . . . . . . Piercing Weapon . | . . . . . . Special Melee Weapon . | . . . . . . Unidentified Prototypes 3 | . . . 3 . . Parts Lost 4 | . 1 . 3 . . Power . | . . . . . . Propulsion . | . . . . . . Utility . | . . . . . . Weapon 4 | . 1 . 3 . . Highest Loss Streak 1 | . 1 . 1 . . To Critical Strikes . | . . . . . . Average Slot Usage (%) 96 | . 99 100 98 100 71 Engine 12 | . 14 14 11 11 11 Treads 15 | . 27 14 11 11 11 Wheel 8 | . 1 14 10 11 11 Device 6 | . . . 10 11 11 Storage 12 | . 14 14 11 11 11 Processor 11 | . 13 14 11 11 11 Energy Gun 10 | . 21 14 6 9 1 Energy Cannon 7 | . . . 14 11 1 Ballistic Gun 9 | . 6 14 11 11 1 Naked Turns . | . . . . . . Heaviest Build 102 | 11 49 48 102 101 101 Greatest Support 40 | 40 40 16 16 12 12 Greatest Overweight (x) 8 | . 2 2 8 8 8 Average Overweight (x) 4 | . . 2 6 8 7 Largest Inventory Capacity 25 | 8 20 20 25 25 25 Average Capacity 22 | 8 17 20 24 25 25 Most Carried 25 | 6 16 16 25 25 25 Average Carried 18 | 4 8 16 22 25 25 Final Capacity 25 | 8 20 20 25 25 25 Final Carried 25 | 2 16 16 25 25 25 Class Distribution -------------------- 53% | Gunner 46% | Mutant Dominant Class ---------------- Mutant | -10/Materials Mutant | -10/Mines Gunner | -9/Materials Gunner | -9/Mines Mutant | -9/Exiles Resources | -11 -10 -10 -9 -9 -9 ----------- Run | Jun Mat Min Mat Min Exi Matter Collected 970 | 200 131 21 618 . . Remotely . | . . . . . . Salvage Created 2206 | . 529 14 1646 17 . Parts 139 | . 30 4 101 4 . Haulers Intercepted 7 | . 2 . 5 . . Recyclers Shooed 3 | . 2 . 1 . . Parts Field Recycled . | . . . . . . Retrieved Matter . | . . . . . . Parts Self-Destructed . | . . . . . . Prevented . | . . . . . . Kills | -11 -10 -10 -9 -9 -9 ------- Run | Jun Mat Min Mat Min Exi Combat Hostiles Destroyed 46 | . 7 . 35 4 . Guns 11 | . 7 . 4 . . Cannons 11 | . . . 11 . . AOE 24 | . . . 20 4 . Classes Destroyed 9 | . 5 1 3 . . Worker 6 | . 1 . 5 . . Builder 3 | . . 1 2 . . Hauler 7 | . 2 . 5 . . Recycler 5 | . 1 . 4 . . Operator 1 | . . . 1 . . Watcher 3 | . 1 . 2 . . Swarmer 13 | . . . 9 4 . Grunt 28 | . 7 . 21 . . Sentry 5 | . . . 5 . . Best Kill Streak 8 | . 3 1 8 4 . Combat Bots Only 6 | . 3 . 6 4 . Max Kills in Single Turn 4 | . 1 1 4 3 . Gunslinging . | . . . . . . Exploded 3 | . . . 3 3 . Melee . | . . . . . . Uniques/NPCs Destroyed . | . . . . . . Combat | -11 -10 -10 -9 -9 -9 -------- Run | Jun Mat Min Mat Min Exi Damage Taken 1397 | . 456 . 908 33 . Core 294 | . 102 . 169 23 . Absorbed by Shields . | . . . . . . Regen/Repaired (Parts) 92 | . . . 92 . . Core Remaining (%) 79 | 100 . 59 . . . Volleys Fired 141 | . 53 4 82 2 . Largest 3 | . 2 2 3 1 . Hottest 166 | . 90 70 166 30 . Shots Fired 326 | . 106 8 210 2 . Gun 230 | . 106 8 116 . . Cannon 79 | . . . 79 . . Launcher 17 | . . . 15 2 . Special . | . . . . . . Kinetic 111 | . 31 4 76 . . Thermal 176 | . 53 4 119 . . Explosive 17 | . . . 15 2 . Electromagnetic 22 | . 22 . . . . Robot Hit Streak 14 | . 14 12 13 12 . Robot Miss Streak 3 | . 3 1 2 . . Penetration Max . | . . . . . . Secondary Targets 1 | . 1 . . . . Max Gunslinging Chain 1 | . 1 . . . . Shots Hit Robots 210 | . 78 6 125 1 . Core Hits 105 | . 25 4 73 3 . Critical Kills . | . . . . . . Critical Parts Destroyed . | . . . . . . Critical Strikes 5 | . 2 1 2 . . Burn 5 | . 2 1 2 . . Melee Attacks . | . . . . . . Impact . | . . . . . . Slashing . | . . . . . . Piercing . | . . . . . . Sneak Attacks . | . . . . . . Combat Hostiles . | . . . . . . Follow-up Attacks . | . . . . . . Damage Inflicted 4687 | . 882 55 3504 246 . Guns 1626 | . 882 55 689 . . Cannons 1137 | . . . 1137 . . Explosions 1924 | . . . 1678 246 . Melee . | . . . . . . Ramming . | . . . . . . Kinetic 603 | . 209 30 364 . . Thermal 1985 | . 498 25 1462 . . Explosive 1924 | . . . 1678 246 . Electromagnetic 175 | . 175 . . . . Impact . | . . . . . . Slashing . | . . . . . . Piercing . | . . . . . . Highest Corruption 1 | . 1 1 1 1 1 Average Corruption 1 | . 1 1 1 1 1 Corruption Purged . | . . . . . . Corruption Blocked . | . . . . . . Effects 14 | . 3 5 2 1 3 Message Errors 3 | . 1 . 1 . 1 Matter Fused 4 | . . 3 1 . . Heat Flow Errors 3 | . 1 1 . 1 . Energy Discharges 1 | . . . . . 1 Data Loss (minor) 2 | . 1 1 . . . Data Loss (major) 1 | . . . . . 1 Overload Shots . | . . . . . . Overflow Damage 51 | . . . 43 8 . Projectiles 5 | . . . 5 . . Explosions 46 | . . . 38 8 . Melee . | . . . . . . Knockbacks . | . . . . . . Impact . | . . . . . . Kinetic . | . . . . . . Secondary . | . . . . . . Self-Inflicted Damage 89 | . . . 89 . . Shots 4 | . . . 4 . . Rammed . | . . . . . . Targets Rammed . | . . . . . . Kicked . | . . . . . . Crushed . | . . . . . . Highest Temperature 271 | . 254 271 195 151 . Average Temperature 65 | . 88 85 33 96 . Received Heat Transfer 585 | . 261 . 324 . . Siege Activations . | . . . . . . Robots Corrupted . | . . . . . . Combat Hostiles . | . . . . . . Parts Fried 2 | . 2 . . . . Impact Corruptions . | . . . . . . Robots Melted . | . . . . . . Combat Hostiles . | . . . . . . Parts Melted 6 | . 2 . 4 . . Heat Transferred 4810 | . 1628 148 3034 . . Parts Sabotaged . | . . . . . . Parts Stolen . | . . . . . . Parts Stripped . | . . . . . . Power Chain Reactions . | . . . . . . Missiles Intercepted . | . . . . . . Alert | -11 -10 -10 -9 -9 -9 ------- Run | Jun Mat Min Mat Min Exi Peak Influence 627 | . 157 13 627 355 . Initial 243 | . . 8 1 243 . Average 213 | . 67 7 326 350 . Maximum Alert Level 2 | . . . 2 1 . Low Security (%) 57 | 100 100 100 29 . . Level 1 22 | . . . 35 100 . Level 2 20 | . . . 35 . . Level 3 . | . . . . . . Level 4 . | . . . . . . Level 5 . | . . . . . . High Security . | . . . . . . Max Security . | . . . . . . Squads Dispatched 7 | . . . 7 . . Investigation 3 | . . . 3 . . Extermination . | . . . . . . Reinforcement 4 | . . . 4 . . Assault . | . . . . . . Garrison . | . . . . . . Intercept . | . . . . . . Searches Triggered . | . . . . . . Construction Impeded 1 | . . . 1 . . Haulers Reinforced . | . . . . . . Active Scanning Responses . | . . . . . . Cargo Convoy Interrupts . | . . . . . . Stealth | -11 -10 -10 -9 -9 -9 --------- Run | Jun Mat Min Mat Min Exi Distress Signals 3 | . 1 . 2 . . Communications Jammed . | . . . . . . Distress Signals . | . . . . . . Times Spotted 65 | . 14 . 47 4 . Peak Tracking Total 4 | . 4 . 4 4 . Tactical Retreats 5 | . 3 . 2 . . Traps | -11 -10 -10 -9 -9 -9 ------- Run | Jun Mat Min Mat Min Exi Traps Triggered 7 | . 2 . 5 . . Indirectly . | . . . . . . Trap Hack Attempts . | . . . . . . Triggered . | . . . . . . Disarmed . | . . . . . . Reprogrammed . | . . . . . . Reused . | . . . . . . Traps Extracted . | . . . . . . Installed . | . . . . . . Triggered . | . . . . . . Machines | -11 -10 -10 -9 -9 -9 ---------- Run | Jun Mat Min Mat Min Exi Machines Disabled 3 | . . . 3 . . Max in Single Turn 1 | . . . 1 . . Machines Repaired . | . . . . . . Machines Sabotaged . | . . . . . . Overloaded Fab Kills . | . . . . . . Hacking | -11 -10 -10 -9 -9 -9 --------- Run | Jun Mat Min Mat Min Exi Machines Accessed 14 | . 4 1 7 . 2 Terminals 11 | . 4 1 6 . . Fabricators . | . . . . . . Repair Stations 1 | . . . 1 . . Recycling Units . | . . . . . . Scanalyzers . | . . . . . . Garrison Access . | . . . . . . Total Hacks 45 | . 9 5 29 . 2 Successful 21 | . 4 1 14 . 2 Failed 24 | . 5 4 15 . . Catastrophic 6 | . 2 2 2 . . Database Lockouts . | . . . . . . Manual 25 | . 7 3 14 . 1 Terminals 37 | . 9 5 23 . . Fabricators . | . . . . . . Repair Stations 6 | . . . 6 . . Recycling Units . | . . . . . . Scanalyzers . | . . . . . . Garrison Access . | . . . . . . Terminal Hacks 14 | . 4 1 7 . 2 Record 1 | . . . . . 1 Part Schematic 2 | . 2 . . . . Prototype ID Bank 1 | . . . 1 . . Terminal Index 1 | . . . 1 . . Unreport Threat 1 | . . . 1 . . Locate Traps 3 | . 2 . 1 . . Recall Reinforcements 1 | . . . 1 . . Zone Layout 3 | . . 1 2 . . EX-Prototype ID Bank 1 | . . . . . 1 Fabricator Hacks . | . . . . . . Repair Station Hacks 4 | . . . 4 . . Scan Component 2 | . . . 2 . . Repair 2 | . . . 2 . . Recycling Unit Hacks . | . . . . . . Scanalyzer . | . . . . . . Garrison Access Hacks . | . . . . . . Unauthorized Hacks 3 | . . . 3 . . Terminals 3 | . . . 3 . . Botnet 1 | . . . 1 . . Disrupt 1 | . . . 1 . . Operators 1 | . . . 1 . . Fabricators . | . . . . . . Repair Stations . | . . . . . . Recycling Units . | . . . . . . Scanalyzers . | . . . . . . Garrison Access . | . . . . . . Data Cores Recovered . | . . . . . . Used . | . . . . . . Hacking Detections 9 | . 3 1 5 . . Full Trace Events 3 | . 1 . 2 . . Feedback Events . | . . . . . . Feedback Blocked . | . . . . . . Robot Schematics Acquired . | . . . . . . Robots Built . | . . . . . . Authchips . | . . . . . . Time . | . . . . . . Total Robot Build Rating . | . . . . . . Part Schematics Acquired 2 | . 2 . . . . Parts Built . | . . . . . . Authchips . | . . . . . . Time . | . . . . . . Total Part Build Rating . | . . . . . . Parts Repaired 2 | . . . 2 . . Time 64 | . . . 64 . . Parts Recycled . | . . . . . . Recycled Matter . | . . . . . . Retrieved Matter . | . . . . . . Retrieved Components . | . . . . . . Parts Scanalyzed . | . . . . . . Part Schematics Acquired . | . . . . . . Parts Damaged . | . . . . . . Bothacking | -11 -10 -10 -9 -9 -9 ------------ Run | Jun Mat Min Mat Min Exi Used RIF Installer . | . . . . . . Robots Hacked . | . . . . . . Non-combat . | . . . . . . Combat . | . . . . . . Robot Hacks Applied . | . . . . . . Relay Couplers Released . | . . . . . . Fabnet Peak Effective % . | . . . . . . Robots Rewired . | . . . . . . Allies Hacked . | . . . . . . Hacks Repelled . | . . . . . . Allies | -11 -10 -10 -9 -9 -9 -------- Run | Jun Mat Min Mat Min Exi Total Allies . | . . . . . . Largest Group . | . . . . . . Highest-Rated Group . | . . . . . . Highest-Rated Ally . | . . . . . . Total Orders . | . . . . . . Ally Attacks . | . . . . . . Total Damage . | . . . . . . Kills . | . . . . . . Allies Corrupted . | . . . . . . Allies Melted . | . . . . . . Intel | -11 -10 -10 -9 -9 -9 ------- Run | Jun Mat Min Mat Min Exi Robot Analysis Total . | . . . . . . Derelict Logs Recovered 3 | . . 3 . . . Drone Launches . | . . . . . . Drone Recoveries . | . . . . . . Exploration | -11 -10 -10 -9 -9 -9 ------------- Run | Jun Mat Min Mat Min Exi Turns Passed 3594 | 5 840 476 1872 56 345 Spaces Moved 1630 | 1 330 353 748 24 174 Core . | . . . . . . Treads 288 | 1 287 . . . . Legs . | . . . . . . Wheels 1342 | . 43 353 748 24 174 Hover . | . . . . . . Flight . | . . . . . . Fastest Speed 130 | 160 130 130 130 210 195 Average Speed 178 | 160 188 130 192 210 197 Slowest Speed 240 | 160 240 130 210 210 210 Overloaded Moves . | . . . . . . Propulsion Burnouts . | . . . . . . Robots Hopped . | . . . . . . Cave-ins Triggered . | . . . . . . Exploration Rate (%) 46 | 2 47 86 76 10 59 Regions Visited 5 Branch Regions 3 Pre-discovered Areas 1 | . . . . . 1 Known Exits Taken 1 | . . 1 . . . Unknown Exits Taken 4 | 1 1 . 1 1 . Scrap Searched 1 | . . 1 . . . Spaces Dug 39 | . . . 39 . . Terrain Destroyed 131 | . . . 111 20 . Melee . | . . . . . . Projectile 8 | . . . 8 . . AOE 123 | . . . 103 20 . Terrain Rammed . | . . . . . . Walls Destroyed . | . . . . . . Machines Disabled . | . . . . . . Actions | -11 -10 -10 -9 -9 -9 --------- Run | Jun Mat Min Mat Min Exi Total 2048 | 6 447 363 1028 27 177 Wait 172 | . 37 7 128 . . Move 1625 | . 329 352 747 23 174 Hop . | . . . . . . Pick Up 35 | . 16 . 19 . . Fast Attach 8 | . 2 . 6 . . Attach 9 | 2 2 . 5 . . Detach . | . . . . . . Swap 32 | . 4 . 26 2 . Drop 26 | 4 4 . 15 . 3 Fire 141 | . 53 4 82 2 . Melee . | . . . . . . Ram . | . . . . . . Kick . | . . . . . . Crush . | . . . . . . Escape Stasis . | . . . . . . Rewire . | . . . . . . Trap . | . . . . . . Miscellaneous . | . . . . . . Route ------- -11/Junkyard -10/Materials (discovered 2 exits: *Mat / *Min) -10/Mines -9/Materials (discovered 4 exits: [*Mat x3] / [*Min]) -9/Mines -9/Exiles History --------- Turn | Location | Event 6 | -11/Junkyard | Discovered new exit (range 0) 6 | -11/Junkyard | Entered Materials 186 | -10/Materials | Discovered new exit (range 15) 300 | -10/Materials | Build established: Mutant 624 | -10/Materials | Discovered new exit (range 16) 846 | -10/Materials | Entered Mines 850 | -10/Mines | Learned Materials interactive machine intel 956 | -10/Mines | Identified exit to Materials 1322 | -10/Mines | Entered Materials 1322 | -9/Materials | Evolved 2 slots: Utility x1, Weapon x1 1323 | -9/Materials | Loaded intel: 18 interactive machine locations 1672 | -9/Materials | Build established: Gunner 1849 | -9/Materials | Discovered new exit (range 13) 2170 | -9/Materials | Discovered new exit (range 11) 2634 | -9/Materials | Repaired Arm. Wheel 2668 | -9/Materials | Repaired Cooling System 3032 | -9/Materials | Discovered new exit (range 11) 3163 | -9/Materials | Discovered new exit (range 16) 3194 | -9/Materials | Entered Mines 3241 | -9/Mines | Deemed a non-threat by the Exiles lab entrance 3241 | -9/Mines | Discovered new exit (range 5) 3250 | -9/Mines | Entered Exiles 3307 | -9/Exiles | Met 8R-AWN 3332 | -9/Exiles | Met EX-HEX 3430 | -9/Exiles | Met EX-DEC 3463 | -9/Exiles | Learned location of Zion (-6) 3504 | -9/Exiles | Met EX-BIN 3537 | -9/Exiles | Aligned with FarCom system 3539 | -9/Exiles | Given EX-Vault access code 3588 | -9/Exiles | Opened EX-Vault 3595 | -9/Exiles | Self-destructed Last Messages --------------- Modified TNC 0b10 Alert Chip Cloak of Protection Skeleton Box Trap Reconfigurator Supersonic Drone Bay Army-in-a-Box PSU Rigger Chronowheel AWS/Thermal Latent Energy Streamer Gui. Plasma Cannon Firepult YOLO Cannon AWS/Gauss XL Autogun Array AWS/Autocannon Field Lobotomy Kit Longsword +1 Deploy-a-Sentry Map ----- +----------------------------------------------------+ | | | | | | | | | | | | | | | | | | | | | | | | | | | | | | | | | | | | | | | | | ???????????????????#########?????????????????????? | | ???????????????????# [ #?????????????????????? | | ???????????????????# ! #?????????????????????? | | ???????????????????# ]#?????????????????????? | | ???????????????????# X#?????????????????????? | | ???????????????????## @#??????????????????????? | | ???????????????????#X #??????????????????????? | | ???????????????????## #??????????????????????? | | ????????????????????# #??????????????????????? | | ????????????????????# #???###????????????????? | | ????????????????????# #??"""""???????????????? | | ????????????????????# ## """???????????????? | | ????????????????????# X""???????????????? | | ????????????????????# ## """???????????????? | | ??????????????####??# #??"""""???????????????? | | ??????????????"""""?# #???#?#????????????????? | | ?????????????"""" ## #??????????????????????? | | ????????????#""X" #??????????????????????? | | ????????????#" #??????????????????????? | | ????????????#" ## #??????????????????????? | | ????????????#""""""?# #?#########????????????? | | ?????????????#"###??# #?#"""""""#????????????? | | ????????????????????# #?#"""""""#????????????? | | ????????????????????# #?#"""""""#????????????? | | ???????????????????## ###"" """"#????????????? | | ???????????????????#" """"#????????????? | | ???????????????????#" """#????????????? | | ???????????????????#" """#????????????? | | ???????????????????#" """#????????????? | | ???????#???????????#" """#????????????? | +----------------------------------------------------+ Best States ------------- Heat Dissipation 50 Energy Generation 12 Energy Capacity 265 Matter Stores 300 Matter Capacity 300 Sight Range 16 Terrain Scan Density 10 Evasion (%) 40 Targeting Accuracy 6 Recoil Reduction 2 Item Schematics ----------------- Huge Storage Unit | -10/Materials | Hacked Lgt. Ion Engine | -10/Materials | Hacked Robot Schematics ------------------ None Fabricated ------------ Nothing Alien Tech Used ----------------- None Achievements -------------- None Challenges ------------ None Game ------ Seed ChromaticSkeletonStorage Manual? 0 Play Time 00:17:50 Cumulative 751.4 hours Start 2023.03.06 @ 12:06:02 End 2023.03.06 @ 12:23:33 Sessions 1 Manual Loads 0 Difficulty Rogue Special Mode None Game No. 658 Rogue 658 Adventurer 0 Explorer 0 Win Type - Total 35 Types 14/5/6/1/1/1/5/1/1 Lore% 93 Gallery% 97 Achievement% 81 Wizard Run 0 Options --------- ASCII 0 Keyboard 0 Movement Mouse Keybinds 1 Fullscreen 2 Font 24/Smallcaps Map View 76x50 Tactical HUD 1 Map Filters NONE Filters NONE Steam 1 RUN: 381e0d06-7c55-41c9-9281-87490bd25579